Workbook

Sheet Facturation 2024_2025
B2: NB | C2: N° de facture | D2: Clients / Fournisseurs | E2: ACHATS | H2: VENTES | K2: Taux TVA
E3: PA HT | F3: TVA | G3: PA TTC | H3: PV HT | I3: TVA | J3: PV TTC
B4: 1 | C4: 2025-001 | D4: EKNO / JF IMPRESSION - CODE & CLICS | E4: 1429.65 | F4: 285.93 | G4: 1715.58 | H4: 2195 | I4: 439 | J4: 2634 | K4: 20
B5: 2 | C5: 2025-002 | D5: HILAIRE / CODE & CLICS | E5: 52.7 | F5: 10.54 | G5: 63.24 | H5: 121 | I5: 24.2 | J5: 145.2 | K5: 20
B6: 3 | C6: 2025-003 | D6: UXELLO / IEL | E6: 235 | F6: 47 | G6: 282 | H6: 530 | I6: 106 | J6: 636 | K6: 20
B7: 4 | C7: 2025-004 | D7: SAFER / AGG PRINT | E7: 35 | F7: 7 | G7: 42 | H7: 70 | I7: 14 | J7: 84 | K7: 20
B8: 5 | C8: 2025-005 | D8: TOSHIBA / CODE & CLICS | E8: 157.25157 | F8: 31.450314 | G8: 188.701884 | H8: 295 | I8: 59 | J8: 354 | K8: 20
B9: 6 | C9: 2025-006 | D9: CARRIER / AGG PRINT | E9: 257.5 | F9: 51.5 | G9: 309 | H9: 550 | I9: 110 | J9: 660 | K9: 20
B10: 7 | C10: 2025-007 | D10: CARRIER / AGG PRINT | E10: 130 | F10: 26 | G10: 156 | H10: 344 | I10: 68.8 | J10: 412.8 | K10: 20
B11: 8 | C11: 2025-008 | D11: SIC - Réseau ACV France / AGG PRINT | E11: 175 | F11: 35 | G11: 210 | H11: 380 | I11: 76 | J11: 456 | K11: 20
B12: 9 | C12: 2025-009 | D12: ASSOCIATION A.R.B.R.E.S / JF IMPRESSION | E12: 185 | F12: 37 | G12: 222 | H12: 350 | I12: 70 | J12: 420 | K12: 20
B13: 10 | C13: 2025-010 | D13: C.C.A.S / France Enveloppes | E13: 125.44 | F13: 25.088 | G13: 150.528 | H13: 370 | I13: 74 | J13: 444 | K13: 20
B14: 11 | C14: 2025-011 | D14: UXELLO / COPIDEM | E14: 20 | F14: 4 | G14: 24 | H14: 110 | I14: 22 | J14: 132 | K14: 20
B15: 12 | C15: 2025-012 | D15: SAFER / COPIDEM | E15: 37 | F15: 7.4 | G15: 44.4 | H15: 145 | I15: 29 | J15: 174 | K15: 20
B16: 13 | C16: 2025-013 | D16: SAFER / CODE & CLICS | E16: 179.5 | F16: 35.9 | G16: 215.4 | H16: 359 | I16: 71.8 | J16: 430.8 | K16: 20
B17: 14 | C17: 2025-014 | D17: EFOR BELFORT / AGG PRINT | E17: 794.6 | F17: 158.92 | G17: 953.52 | H17: 1450 | I17: 290 | J17: 1740 | K17: 20
B18: 15 | C18: 2025-015 | D18: LES ATELIERS DE LA CÔTE ATLANTIQUE / AGG PRINT | E18: 60 | F18: 12 | G18: 72 | H18: 278 | I18: 55.6 | J18: 333.6 | K18: 20
B19: 16 | C19: 2025-016 | D19: CARRIER / COPIDEM | E19: 195 | F19: 39 | G19: 234 | H19: 1020 | I19: 204 | J19: 1224 | K19: 20
B20: 17 | C20: 2025-017 | D20: CELDA / AGG PRINT | E20: 1138 | F20: 227.6 | G20: 1365.6 | H20: 2276.5 | I20: 455.3 | J20: 2731.8 | K20: 20
B21: 18 | C21: 2025-018 | D21: France Arménie / JF IMPRESSION | E21: 0 | F21: 0 | G21: 0 | H21: 454 | I21: 90.8 | J21: 544.8 | K21: 20
B22: 19 | C22: 2025-019 | D22: France Arménie / SUD ROUTAGE | E22: 0 | F22: 0 | G22: 0 | H22: 100 | I22: 20 | J22: 120 | K22: 20
B23: 20 | C23: 2025-020 | D23: HILAIRE / CODE & CLICS | E23: 52.7 | F23: 10.54 | G23: 63.24 | H23: 121 | I23: 24.2 | J23: 145.2 | K23: 20
B24: 20 | D24: JANVIER 2025 | E24: ACHATS | H24: VENTES | K24: Solde TVA
E25: PA HT | F25: TVA | G25: PA TTC | H25: PV HT | I25: TVA | J25: PV TTC
E26: 5259.34157 | F26: 1051.868314 | G26: 6311.209884 | H26: 11518.5 | I26: 2303.7 | J26: 13822.2 | K26: 1251.831686

Sheet Note de frais n°16
B2: Note de frais n°16
B3: Le Bureau du Print
B4: Date | C4: Clients | D4: Frais kilométriques | F4: Taxi / Train / TCL | G4: Péage/Parking | I4: Hôtel | K4: Restaurant | M4: Réception/autres | P4: Divers | Q4: Total
E5: TTC | G5: TTC | H5: TVA | I5: TTC | J5: TVA | K5: TTC | L5: TVA | M5: TTC | N5: TVA | O5: NOM
B6: 2025-01-01 | E6: =D6*0.447 -> 0 | Q6: =E6+F6+G6+I6+K6+M6+P6 -> 0
B7: 2025-01-02 | C7: AGG PRINT / TOSHIBA / IEL / MAISON RICHARD / DE SARS / | D7: 78 | E7: 34.866 | G7: 4.5 | H7: 0.75 | M7: 3.59 | N7: 0.6 | O7: Renouvellement nom de domaine emart.ovh | Q7: =E7+F7+G7+I7+K7+M7+P7 -> 42.956
B8: 2025-01-03 | C8: UXELLO / SAFER / SLH / IMP RANCHON / | D8: 81 | E8: 36.207 | Q8: 36.207
B9: 2025-01-04 | E9: 0 | Q9: 0
B10: 2025-01-05 | E10: 0 | Q10: 0
B11: 2025-01-06 | C11: CCAS / France Arménie / | D11: 67 | E11: 29.949 | Q11: 29.949
B12: 2025-01-07 | C12: CARRIER / CODE & CLICS / TOP GUN / | D12: 90 | E12: 40.23 | G12: 2.2 | H12: 0.36 | M12: 150.53 | N12: 25.09 | O12: France Enveloppes - client CCAS | Q12: 192.96
B13: 2025-01-08 | C13: ACAPELLA / OPERA DE LYON / | D13: 73 | E13: 32.631 | Q13: 32.631
B14: 2025-01-09 | C14: EFOR / EKNO / | D14: 73 | E14: 32.631 | Q14: 32.631
B15: 2025-01-10 | C15: FAURITE / COPDIDEM / AGG PRINT / APIX MEDIA / | D15: 96 | E15: 42.912 | Q15: 42.912
B16: 2025-01-11 | E16: 0 | Q16: 0
B17: 2025-01-12 | E17: 0 | Q17: 0
B18: 2025-01-13 | C18: AGG PRINT / IEL / UXELLLO / TOSHIBA / CARIER / | D18: 86 | E18: 38.442 | G18: 2.2 | H18: 0.36 | Q18: 40.642
B19: 2025-01-14 | C19: EKNO / IEL / CCAS / | D19: 67 | E19: 29.949 | Q19: 29.949
B20: 2025-01-15 | C20: EFOR / HILAIRE / ACV / AGG PRINT / CARRIER / | D20: 74 | E20: 33.078 | G20: 2.2 | H20: 0.36 | M20: 307.49 | N20: 51.25 | O20: Achat Iphone SE 2022 reconditionné | Q20: 342.768
B21: 2025-01-16 | C21: PAROISSE DE ST GENIS / EFOR / | D21: 79 | E21: 35.313 | Q21: 35.313
B22: 2025-01-17 | C22: COPIDEM / CARRIER / 6ième AVENUE / EKNO / | D22: 78 | E22: 34.866 | G22: 0.8 | H22: 0.13 | Q22: 35.666
B23: 2025-01-18 | E23: 0 | Q23: 0
B24: 2025-01-19 | E24: 0 | Q24: 0
B25: 2025-01-20 | C25: COPIDEM / CODE & CLICS / CARRIER / CCAS / | D25: 85 | E25: 37.995 | G25: 1.1 | H25: 0.18 | Q25: 39.095
B26: 2025-01-21 | C26: UXELLO / SAFER / AGG PRINT / CARRIER / | D26: 78 | E26: 34.866 | G26: 2.2 | H26: 0.36 | Q26: 37.066
B27: 2025-01-22 | C27: SAFER / France Arménie / | D27: 69 | E27: 30.843 | M27: 12.5 | O27: Colissimo client ''LES ATELIERS DE LA CÔTE ATLANTIQUE'' | Q27: 43.343
B28: 2025-01-23 | C28: AGG PRINT / CELDA / | D28: 76 | E28: 33.972 | M28: 100.8 | N28: 16.8 | O28: Renouvellement hebergement site web | Q28: 134.772
B29: 2025-01-24 | C29: CARRIER / TOP GUN / | D29: 80 | E29: 35.76 | Q29: =E29+F29+G29+I29+K30+M29+P29 -> 35.76
B30: 2025-01-25 | E30: 0 | Q30: =E30+F30+G30+I30+K31+M30+P30 -> 0
B31: 2025-01-26 | E31: 0 | Q31: =E31+F31+G31+I31+K31+M31+P31 -> 0
B32: 2025-01-27 | C32: AGG PRINT / UXELLO / TOSHIBA / | D32: 87 | E32: 38.889 | Q32: 38.889
B33: 2025-01-28 | E33: 0 | Q33: 0
B34: 2025-01-29 | C34: IEL / COPIDEM / CARRIER / CODE & CLICS / | D34: 137 | E34: 61.239 | G34: 1.1 | H34: 0.18 | M34: 35.97 | N34: 5.99 | O34: Fournitures bureau divers | Q34: 98.309
B35: 2025-01-30 | C35: AGG PRINT / APIX MEDIA / HILAIRE / CARRIER / | D35: 96 | E35: =D35*0.447 -> 42.912 | G35: 2.2 | H35: 0.36 | Q35: 45.112
B36: 2025-01-31 | C36: UXELLO / CCAS / CARRIER / COPIDEM / | D36: 86 | E36: =D36*0.447 -> 38.442 | Q36: 38.442
B37: Kms fin de mois | D37: =SUM(D6:D36) -> 1736 | Q37: =SUM(Q6:Q36) -> 1405.372
B38: TOTAL TVA PAR CATEGORIE | H38: =SUM(H7:H37) -> 3.04 | J38: =SUM(J6:J37) -> 0 | L38: =SUM(L6:L37) -> 0 | N38: =SUM(N6:N37) -> 99.73
B39: TOTAL TTC PAR CATEGORIE | E39: =SUM(E6:E38) -> 775.992 | F39: =SUM(F6:F36) -> 0 | G39: =SUM(G6:G36) -> 18.5 | I39: =SUM(I6:I36) -> 0 | K39: =SUM(K6:K36) -> 0 | M39: =SUM(M6:M36) -> 610.88 | P39: =SUM(P6:P38) -> 0
L41: HT | M41: TVA | N41: TTC | P41: Fait le | Q41: 2025-01-31
L42: =N42-M42 -> 1302.602 | M42: =SUM(D38:P38) -> 102.77 | N42: =SUM(D39:P39) -> 1405.372
